[Event "Titled Tuesday Blitz May 31 Late 2022"]
[White "Prydun, Andriy"]
[Black "Martic, Ivan"]
[WhiteFideId "14145898"]
[BlackFideId "929301"]
[WhiteElo "2063"]
[BlackElo "2317"]
[Result "1-0"]
[Round "09"]
[TimeControl "180+1"]
[Date "2022.06.01"]
[WhiteClock "0:00:03"]
[BlackClock "0:00:04"]

1. e4 {[%clk 0:02:42]}  c6 {[%clk 0:02:59]} 2. d4 {[%clk 0:02:40]}  d5 {[%clk 0:02:59]} 3. e5 {[%clk 0:02:39]}  Bf5 {[%clk 0:02:59]} 4. Nf3 {[%clk 0:01:56]}  e6 {[%clk 0:02:59]} 5. a3 {[%clk 0:01:54]}  Nd7 {[%clk 0:02:52]} 6. Be2 {[%clk 0:01:50]}  Ne7 {[%clk 0:02:50]} 7. O-O {[%clk 0:01:48]}  h6 {[%clk 0:02:51]} 8. Be3 {[%clk 0:01:44]}  Nc8 {[%clk 0:02:34]} 9. c4 {[%clk 0:01:42]}  dxc4 {[%clk 0:02:33]} 10. Bxc4 {[%clk 0:01:39]}  Ncb6 {[%clk 0:02:33]} 11. Bd3 {[%clk 0:01:36]}  Bxd3 {[%clk 0:02:32]} 12. Qxd3 {[%clk 0:01:37]}  Be7 {[%clk 0:02:32]} 13. Nc3 {[%clk 0:01:37]}  O-O {[%clk 0:02:30]} 14. Rad1 {[%clk 0:01:10]}  Nd5 {[%clk 0:02:26]} 15. Ne4 {[%clk 0:01:07]}  a5 {[%clk 0:02:20]} 16. Nfd2 {[%clk 0:00:46]}  c5 {[%clk 0:02:14]} 17. Nc4 {[%clk 0:00:42]}  b5 {[%clk 0:02:04]} 18. Ncd6 {[%clk 0:00:39]}  c4 {[%clk 0:02:04]} 19. Qe2 {[%clk 0:00:37]}  Qb6 {[%clk 0:02:01]} 20. Qg4 {[%clk 0:00:34]}  Nxe3 {[%clk 0:01:44]} 21. fxe3 {[%clk 0:00:33]}  Bxd6 {[%clk 0:01:33]} 22. Nxd6 {[%clk 0:00:31]}  f5 {[%clk 0:01:32]} 23. exf6 {[%clk 0:00:27]}  Nxf6 {[%clk 0:01:31]} 24. Qxe6+ {[%clk 0:00:27]}  Kh7 {[%clk 0:01:31]} 25. d5 {[%clk 0:00:25]}  Rad8 {[%clk 0:01:19]} 26. Nf5 {[%clk 0:00:24]}  Nxd5 {[%clk 0:01:17]} 27. Qe5 {[%clk 0:00:13]}  Nf6 {[%clk 0:01:08]} 28. Qe7 {[%clk 0:00:12]}  Rg8 {[%clk 0:00:55]} 29. Rd6 {[%clk 0:00:12]}  Rxd6 {[%clk 0:00:48]} 30. Nxd6 {[%clk 0:00:13]}  Qc5 {[%clk 0:00:42]} 31. Rxf6 {[%clk 0:00:11]}  b4 {[%clk 0:00:24]} 32. axb4 {[%clk 0:00:10]}  axb4 {[%clk 0:00:25]} 33. Rf7 {[%clk 0:00:07]}  c3 {[%clk 0:00:23]} 34. bxc3 {[%clk 0:00:05]}  bxc3 {[%clk 0:00:24]} 35. Nf5 {[%clk 0:00:05]}  Qxe7 {[%clk 0:00:22]} 36. Rxe7 {[%clk 0:00:04]}  Rc8 {[%clk 0:00:16]} 37. Nd4 {[%clk 0:00:03]}  c2 {[%clk 0:00:15]} 38. Nxc2 {[%clk 0:00:04]}  Rxc2 {[%clk 0:00:16]} 39. Re6 {[%clk 0:00:04]}  g5 {[%clk 0:00:14]} 40. h3 {[%clk 0:00:04]}  Kg7 {[%clk 0:00:14]} 41. Kh2 {[%clk 0:00:05]}  Kf7 {[%clk 0:00:11]} 42. Rxh6 {[%clk 0:00:04]}  Re2 {[%clk 0:00:11]} 43. Kg3 {[%clk 0:00:03]}  Rxe3+ {[%clk 0:00:10]} 44. Kg4 {[%clk 0:00:04]}  Re2 {[%clk 0:00:10]} 45. g3 {[%clk 0:00:04]}  Re3 {[%clk 0:00:09]} 46. Ra6 {[%clk 0:00:03]}  Kg7 {[%clk 0:00:07]} 47. Ra5 {[%clk 0:00:03]}  Kh6 {[%clk 0:00:07]} 48. Ra6+ {[%clk 0:00:03]}  Kg7 {[%clk 0:00:06]} 49. Rb6 {[%clk 0:00:03]}  Rd3 {[%clk 0:00:05]} 50. Rc6 {[%clk 0:00:02]}  Rb3 {[%clk 0:00:05]} 51. Rc7+ {[%clk 0:00:02]}  Kg6 {[%clk 0:00:05]} 52. Rc6+ {[%clk 0:00:03]}  Kg7 {[%clk 0:00:05]} 53. Rc4 {[%clk 0:00:04]}  Kg6 {[%clk 0:00:05]} 54. Rd4 {[%clk 0:00:04]}  Rc3 {[%clk 0:00:05]} 55. Rd6+ {[%clk 0:00:04]}  Kg7 {[%clk 0:00:05]} 56. Rd5 {[%clk 0:00:05]}  Kf6 {[%clk 0:00:04]} 57. Rf5+ {[%clk 0:00:05]}  Ke6 {[%clk 0:00:05]} 58. Rxg5 {[%clk 0:00:05]}  Kf6 {[%clk 0:00:04]} 59. Rf5+ {[%clk 0:00:05]}  Kg6 {[%clk 0:00:05]} 60. Rf4 {[%clk 0:00:05]}  Rb3 {[%clk 0:00:04]} 61. h4 {[%clk 0:00:06]}  Kh6 {[%clk 0:00:04]} 62. Rf6+ {[%clk 0:00:04]}  Kg7 {[%clk 0:00:04]} 63. Ra6 {[%clk 0:00:04]}  Rb4+ {[%clk 0:00:04]} 64. Kh3 {[%clk 0:00:03]}  Rb3 {[%clk 0:00:04]} 65. h5 {[%clk 0:00:03]}  Kh7 {[%clk 0:00:04]} 66. Kh4 {[%clk 0:00:03]}  Rb4+ {[%clk 0:00:04]} 67. g4 {[%clk 0:00:04]}  Rc4 {[%clk 0:00:04]} 68. Ra5 {[%clk 0:00:03]}  Kh6 {[%clk 0:00:04]} 69. Ra6+ {[%clk 0:00:03]}  Kh7 {[%clk 0:00:05]} 70. Rf6 {[%clk 0:00:03]}  Rc1 {[%clk 0:00:02]} 71. Kg5 {[%clk 0:00:03]}  Kg7 {[%clk 0:00:02]} 72. Rf5 {[%clk 0:00:02]}  Kh7 {[%clk 0:00:03]} 73. Rf6 {[%clk 0:00:02]}  Rc5+ {[%clk 0:00:03]} 74. Rf5 {[%clk 0:00:03]}  Rc1 {[%clk 0:00:04]} 75. Ra5 {[%clk 0:00:03]}  Kg7 {[%clk 0:00:04]} 76. Ra7+ {[%clk 0:00:03]}  Kg8 {[%clk 0:00:05]} 77. Kh6 {[%clk 0:00:02]}  Rc6+ {[%clk 0:00:05]} 78. Kg5 {[%clk 0:00:03]}  Rc5+ {[%clk 0:00:05]} 79. Kf4 {[%clk 0:00:04]}  Rc4+ {[%clk 0:00:05]} 80. Kg3 {[%clk 0:00:04]}  Rc3+ {[%clk 0:00:06]} 81. Kh4 {[%clk 0:00:05]}  Rc4 {[%clk 0:00:07]} 82. h6 {[%clk 0:00:05]}  Kh8 {[%clk 0:00:06]} 83. Kh5 {[%clk 0:00:05]}  Rc1 {[%clk 0:00:06]} 84. g5 {[%clk 0:00:05]}  Rc5 {[%clk 0:00:07]} 85. Rd7 {[%clk 0:00:03]}  Rc6 {[%clk 0:00:07]} 86. Rf7 {[%clk 0:00:03]}  Rb6 {[%clk 0:00:07]} 87. Rf6 {[%clk 0:00:02]}  Rb5 {[%clk 0:00:07]} 88. Kg6 {[%clk 0:00:03]}  Rb8 {[%clk 0:00:07]} 89. h7 {[%clk 0:00:02]}  Ra8 {[%clk 0:00:06]} 90. Kh6 {[%clk 0:00:03]}  Rb8 {[%clk 0:00:06]} 91. g6 {[%clk 0:00:03]}  Rb6 {[%clk 0:00:04]} 92. g7# {[%clk 0:00:03]} 1-0


[Site "https://www.chess.com"]

[Event "Titled Tuesday Blitz May 31 Late 2022"]
[White "Riehle, Marco"]
[Black "Nazaretyan, Tigran"]
[WhiteFideId "12904392"]
[BlackFideId "24162345"]
[WhiteElo "2462"]
[BlackElo "2225"]
[Result "1-0"]
[Round "09"]
[TimeControl "180+1"]
[Date "2022.05.31"]
[WhiteClock "0:00:40"]
[BlackClock "0:00:02"]

1. e4 {[%clk 0:03:00]}  c5 {[%clk 0:02:56]} 2. a3 {[%clk 0:03:00]}  g6 {[%clk 0:02:55]} 3. h4 {[%clk 0:03:00]}  h5 {[%clk 0:02:51]} 4. Nc3 {[%clk 0:02:59]}  Bg7 {[%clk 0:02:51]} 5. Bc4 {[%clk 0:02:56]}  e6 {[%clk 0:02:45]} 6. d3 {[%clk 0:02:56]}  Nc6 {[%clk 0:02:43]} 7. Bg5 {[%clk 0:02:57]}  Nge7 {[%clk 0:02:42]} 8. Qd2 {[%clk 0:02:56]}  a6 {[%clk 0:02:29]} 9. O-O-O {[%clk 0:02:55]}  b5 {[%clk 0:02:29]} 10. Ba2 {[%clk 0:02:55]}  b4 {[%clk 0:02:29]} 11. axb4 {[%clk 0:02:56]}  Nxb4 {[%clk 0:02:28]} 12. Bb3 {[%clk 0:02:53]}  Qa5 {[%clk 0:02:26]} 13. Kb1 {[%clk 0:02:53]}  Rb8 {[%clk 0:02:16]} 14. Bxe7 {[%clk 0:02:47]}  Kxe7 {[%clk 0:02:15]} 15. Nge2 {[%clk 0:02:47]}  Nc6 {[%clk 0:02:14]} 16. f4 {[%clk 0:02:41]}  Qb4 {[%clk 0:01:49]} 17. f5 {[%clk 0:02:35]}  Na5 {[%clk 0:01:45]} 18. fxg6 {[%clk 0:02:34]}  fxg6 {[%clk 0:01:44]} 19. Rhf1 {[%clk 0:02:27]}  Bh6 {[%clk 0:01:39]} 20. Nf4 {[%clk 0:02:25]}  Nxb3 {[%clk 0:01:29]} 21. cxb3 {[%clk 0:02:13]}  Qxb3 {[%clk 0:01:18]} 22. Nxg6+ {[%clk 0:02:11]}  Kd6 {[%clk 0:01:15]} 23. e5+ {[%clk 0:01:50]}  Kc7 {[%clk 0:01:13]} 24. Qf2 {[%clk 0:01:46]}  Rg8 {[%clk 0:01:08]} 25. Qxc5+ {[%clk 0:01:44]}  Kb7 {[%clk 0:01:00]} 26. Nf4 {[%clk 0:01:33]}  Ka8 {[%clk 0:00:57]} 27. Rd2 {[%clk 0:01:31]}  Bb7 {[%clk 0:00:54]} 28. Rc2 {[%clk 0:01:28]}  Bc6 {[%clk 0:00:51]} 29. Nxe6 {[%clk 0:01:04]}  Qxe6 {[%clk 0:00:48]} 30. Rf6 {[%clk 0:01:05]}  Bf8 {[%clk 0:00:42]} 31. Qa5 {[%clk 0:00:59]}  Kb7 {[%clk 0:00:14]} 32. Rxe6 {[%clk 0:00:57]}  dxe6 {[%clk 0:00:14]} 33. Na4 {[%clk 0:00:51]}  Rc8 {[%clk 0:00:05]} 34. Qb6+ {[%clk 0:00:50]}  Ka8 {[%clk 0:00:05]} 35. Rxc6 {[%clk 0:00:50]}  Rxc6 {[%clk 0:00:05]} 36. Qxc6+ {[%clk 0:00:51]}  Kb8 {[%clk 0:00:05]} 37. Qb6+ {[%clk 0:00:50]}  Ka8 {[%clk 0:00:05]} 38. Qxa6+ {[%clk 0:00:49]}  Kb8 {[%clk 0:00:06]} 39. Qb6+ {[%clk 0:00:50]}  Ka8 {[%clk 0:00:06]} 40. Qd8+ {[%clk 0:00:45]}  Kb7 {[%clk 0:00:05]} 41. Nc5+ {[%clk 0:00:45]}  Kc6 {[%clk 0:00:05]} 42. Nxe6 {[%clk 0:00:43]}  Rxg2 {[%clk 0:00:02]} 43. Qc8+ {[%clk 0:00:41]}  Kd5 {[%clk 0:00:02]} 44. Nf4+ {[%clk 0:00:41]}  Kd4 {[%clk 0:00:02]} 45. Nxg2 {[%clk 0:00:40]}  Be7 {[%clk 0:00:03]} 46. Qd7+ {[%clk 0:00:39]}  Kxe5 {[%clk 0:00:02]} 47. Qxe7+ {[%clk 0:00:39]}  Kf5 {[%clk 0:00:03]} 48. Qe4+ {[%clk 0:00:39]}  Kf6 {[%clk 0:00:02]} 49. Nf4 {[%clk 0:00:39]}  Kf7 {[%clk 0:00:03]} 50. Qe6+ {[%clk 0:00:39]}  Kg7 {[%clk 0:00:02]} 51. Qe7+ {[%clk 0:00:39]}  Kh6 {[%clk 0:00:02]} 52. Qg5+ {[%clk 0:00:39]}  Kh7 {[%clk 0:00:02]} 53. Ne6 {[%clk 0:00:40]} 1-0


[Site "https://www.chess.com"]

[Event "Titled Tuesday Blitz May 31 Late 2022"]
[White "Rios Escobar, Adan"]
[Black "Richter, Nils"]
[WhiteFideId "3403645"]
[BlackFideId "12990809"]
[WhiteElo "2417"]
[BlackElo "2243"]
[Result "1-0"]
[Round "09"]
[TimeControl "180+1"]
[Date "2022.06.01"]
[WhiteClock "0:00:01"]
[BlackClock "0:00:18"]

1. d4 {[%clk 0:03:00]}  d5 {[%clk 0:02:57]} 2. Nf3 {[%clk 0:03:00]}  Nf6 {[%clk 0:02:55]} 3. g3 {[%clk 0:02:57]}  c5 {[%clk 0:02:54]} 4. Bg2 {[%clk 0:02:53]}  cxd4 {[%clk 0:02:53]} 5. O-O {[%clk 0:02:53]}  h6 {[%clk 0:02:52]} 6. b3 {[%clk 0:02:50]}  e6 {[%clk 0:02:45]} 7. Bb2 {[%clk 0:02:49]}  Be7 {[%clk 0:02:44]} 8. Nxd4 {[%clk 0:02:46]}  O-O {[%clk 0:02:40]} 9. Nd2 {[%clk 0:02:46]}  Nc6 {[%clk 0:02:35]} 10. c4 {[%clk 0:02:41]}  Bd7 {[%clk 0:02:33]} 11. Nc2 {[%clk 0:02:37]}  Rc8 {[%clk 0:02:30]} 12. Rc1 {[%clk 0:02:36]}  Bd6 {[%clk 0:02:24]} 13. Ne1 {[%clk 0:02:36]}  d4 {[%clk 0:02:16]} 14. c5 {[%clk 0:02:19]}  Bb8 {[%clk 0:02:13]} 15. Nc4 {[%clk 0:02:17]}  e5 {[%clk 0:02:10]} 16. e3 {[%clk 0:02:11]}  Bg4 {[%clk 0:02:05]} 17. Qd2 {[%clk 0:02:04]}  Re8 {[%clk 0:01:53]} 18. h3 {[%clk 0:01:59]}  Bf5 {[%clk 0:01:50]} 19. exd4 {[%clk 0:01:52]}  exd4 {[%clk 0:01:46]} 20. Nd3 {[%clk 0:01:52]}  Ne4 {[%clk 0:01:40]} 21. Qd1 {[%clk 0:01:44]}  Qc7 {[%clk 0:01:31]} 22. Bxe4 {[%clk 0:01:22]}  Rxe4 {[%clk 0:01:29]} 23. Nd6 {[%clk 0:01:20]}  Re6 {[%clk 0:01:22]} 24. Nxf5 {[%clk 0:01:17]}  Rce8 {[%clk 0:01:07]} 25. Nf4 {[%clk 0:01:14]}  Rf6 {[%clk 0:01:00]} 26. Qg4 {[%clk 0:00:51]}  g6 {[%clk 0:00:46]} 27. Nxd4 {[%clk 0:00:33]}  Ne5 {[%clk 0:00:29]} 28. Qh4 {[%clk 0:00:31]}  g5 {[%clk 0:00:27]} 29. Qh5 {[%clk 0:00:19]}  gxf4 {[%clk 0:00:27]} 30. Nb5 {[%clk 0:00:18]}  Qe7 {[%clk 0:00:19]} 31. Nd6 {[%clk 0:00:17]}  Bxd6 {[%clk 0:00:17]} 32. cxd6 {[%clk 0:00:17]}  Qxd6 {[%clk 0:00:18]} 33. Rfd1 {[%clk 0:00:17]}  Qb8 {[%clk 0:00:17]} 34. Bxe5 {[%clk 0:00:07]}  Qxe5 {[%clk 0:00:17]} 35. Qxe5 {[%clk 0:00:03]}  Rxe5 {[%clk 0:00:18]} 36. Rd8+ {[%clk 0:00:02]}  Kg7 {[%clk 0:00:18]} 37. Rd7 {[%clk 0:00:03]}  fxg3 {[%clk 0:00:19]} 38. fxg3 {[%clk 0:00:03]}  Re2 {[%clk 0:00:19]} 39. Rf1 {[%clk 0:00:03]}  Ra6 {[%clk 0:00:18]} 40. Rfxf7+ {[%clk 0:00:02]}  Kg6 {[%clk 0:00:19]} 41. Rg7+ {[%clk 0:00:03]}  Kh5 {[%clk 0:00:18]} 42. Rd5+ {[%clk 0:00:01]} 1-0


[Site "https://www.chess.com"]

[Event "Titled Tuesday Blitz May 31 Late 2022"]
[White "Romanchuk, Viktor"]
[Black "Pakleza, Zbigniew"]
[WhiteFideId "14109271"]
[BlackFideId "1119290"]
[WhiteElo "2242"]
[BlackElo "2467"]
[Result "1/2-1/2"]
[Round "09"]
[TimeControl "180+1"]
[Date "2022.05.31"]
[WhiteClock "0:00:17"]
[BlackClock "0:00:06"]

1. d4 {[%clk 0:03:00]}  d6 {[%clk 0:02:59]} 2. c4 {[%clk 0:02:56]}  e5 {[%clk 0:02:59]} 3. Nc3 {[%clk 0:02:55]}  exd4 {[%clk 0:02:59]} 4. Qxd4 {[%clk 0:02:56]}  Nc6 {[%clk 0:03:00]} 5. Qd2 {[%clk 0:02:56]}  Nf6 {[%clk 0:03:00]} 6. g3 {[%clk 0:02:55]}  Be6 {[%clk 0:03:00]} 7. Nd5 {[%clk 0:02:55]}  Ne5 {[%clk 0:02:50]} 8. b3 {[%clk 0:02:52]}  c6 {[%clk 0:02:42]} 9. Nf4 {[%clk 0:02:40]}  Bf5 {[%clk 0:02:06]} 10. Bg2 {[%clk 0:02:35]}  Be7 {[%clk 0:01:58]} 11. Bb2 {[%clk 0:02:30]}  O-O {[%clk 0:01:55]} 12. Nd3 {[%clk 0:01:46]}  Qc7 {[%clk 0:01:29]} 13. Nf3 {[%clk 0:01:39]}  Nxd3+ {[%clk 0:00:47]} 14. exd3 {[%clk 0:01:36]}  d5 {[%clk 0:00:46]} 15. O-O {[%clk 0:01:35]}  Rad8 {[%clk 0:00:45]} 16. Qc3 {[%clk 0:01:13]}  dxc4 {[%clk 0:00:28]} 17. dxc4 {[%clk 0:01:14]}  Rd3 {[%clk 0:00:28]} 18. Qe5 {[%clk 0:01:10]}  Qxe5 {[%clk 0:00:28]} 19. Nxe5 {[%clk 0:01:10]}  Rd2 {[%clk 0:00:28]} 20. Bc3 {[%clk 0:01:09]}  Rc2 {[%clk 0:00:27]} 21. Rfc1 {[%clk 0:01:09]}  Rd8 {[%clk 0:00:25]} 22. Rxc2 {[%clk 0:01:02]}  Bxc2 {[%clk 0:00:26]} 23. Bf3 {[%clk 0:00:56]}  Ne4 {[%clk 0:00:22]} 24. Rc1 {[%clk 0:00:43]}  Nxc3 {[%clk 0:00:11]} 25. Rxc2 {[%clk 0:00:42]}  Bf6 {[%clk 0:00:10]} 26. Ng4 {[%clk 0:00:39]}  Bd4 {[%clk 0:00:07]} 27. Kf1 {[%clk 0:00:38]}  a5 {[%clk 0:00:05]} 28. Ne3 {[%clk 0:00:33]}  Bxe3 {[%clk 0:00:04]} 29. Rxc3 {[%clk 0:00:33]}  Bg5 {[%clk 0:00:03]} 30. Rc2 {[%clk 0:00:30]}  Kf8 {[%clk 0:00:03]} 31. h4 {[%clk 0:00:30]}  Bf6 {[%clk 0:00:04]} 32. Ke2 {[%clk 0:00:28]}  g6 {[%clk 0:00:03]} 33. Rd2 {[%clk 0:00:28]}  Re8+ {[%clk 0:00:03]} 34. Kf1 {[%clk 0:00:27]}  Re7 {[%clk 0:00:03]} 35. Bg4 {[%clk 0:00:26]}  h5 {[%clk 0:00:03]} 36. Bh3 {[%clk 0:00:26]}  Be5 {[%clk 0:00:02]} 37. Rd7 {[%clk 0:00:26]}  Rxd7 {[%clk 0:00:03]} 38. Bxd7 {[%clk 0:00:26]}  Ke7 {[%clk 0:00:03]} 39. Bc8 {[%clk 0:00:26]}  b6 {[%clk 0:00:04]} 40. Bb7 {[%clk 0:00:25]}  Kd6 {[%clk 0:00:04]} 41. Ke2 {[%clk 0:00:20]}  Kc7 {[%clk 0:00:03]} 42. Ba8 {[%clk 0:00:19]}  Bd4 {[%clk 0:00:02]} 43. f4 {[%clk 0:00:18]}  f6 {[%clk 0:00:02]} 44. Kf3 {[%clk 0:00:18]}  f5 {[%clk 0:00:02]} 45. Ke2 {[%clk 0:00:17]}  Bc5 {[%clk 0:00:02]} 46. a4 {[%clk 0:00:16]}  Bb4 {[%clk 0:00:02]} 47. Kf3 {[%clk 0:00:16]}  Bc5 {[%clk 0:00:03]} 48. Ke2 {[%clk 0:00:16]}  Bb4 {[%clk 0:00:03]} 49. Kf3 {[%clk 0:00:17]}  Be1 {[%clk 0:00:04]} 50. Kg2 {[%clk 0:00:17]}  Kd6 {[%clk 0:00:04]} 51. Kf3 {[%clk 0:00:17]}  Bc3 {[%clk 0:00:04]} 52. Kf2 {[%clk 0:00:16]}  Bd2 {[%clk 0:00:04]} 53. Ke2 {[%clk 0:00:16]}  Bb4 {[%clk 0:00:04]} 54. Kf3 {[%clk 0:00:16]}  Be1 {[%clk 0:00:04]} 55. Kg2 {[%clk 0:00:16]}  Kc5 {[%clk 0:00:05]} 56. Kf3 {[%clk 0:00:17]}  Kd6 {[%clk 0:00:05]} 57. Kg2 {[%clk 0:00:17]}  Kc7 {[%clk 0:00:06]} 58. Kf3 {[%clk 0:00:17]}  Kd6 {[%clk 0:00:06]} 1/2-1/2


[Site "https://www.chess.com"]

[Event "Titled Tuesday Blitz May 31 Late 2022"]
[White "Rosen, Eric"]
[Black "Buchenau, Frank"]
[WhiteFideId "2032562"]
[BlackFideId "4604350"]
[WhiteElo "2362"]
[BlackElo "2157"]
[Result "0-1"]
[Round "09"]
[TimeControl "180+1"]
[Date "2022.05.31"]
[WhiteClock "0:00:01"]
[BlackClock "0:00:39"]

1. d4 {[%clk 0:02:54]}  e6 {[%clk 0:03:00]} 2. e4 {[%clk 0:02:53]}  d5 {[%clk 0:02:59]} 3. e5 {[%clk 0:02:54]}  c5 {[%clk 0:02:59]} 4. c3 {[%clk 0:02:54]}  Qb6 {[%clk 0:02:59]} 5. Nf3 {[%clk 0:02:55]}  Bd7 {[%clk 0:02:59]} 6. Bd3 {[%clk 0:02:55]}  cxd4 {[%clk 0:02:58]} 7. cxd4 {[%clk 0:02:41]}  Nc6 {[%clk 0:02:58]} 8. Nc3 {[%clk 0:01:54]}  Nxd4 {[%clk 0:02:55]} 9. Nxd4 {[%clk 0:01:54]}  Qxd4 {[%clk 0:02:55]} 10. O-O {[%clk 0:01:52]}  a6 {[%clk 0:02:51]} 11. Re1 {[%clk 0:01:41]}  Ne7 {[%clk 0:02:50]} 12. Qe2 {[%clk 0:01:13]}  Nc6 {[%clk 0:02:49]} 13. Bc2 {[%clk 0:01:02]}  Qa7 {[%clk 0:02:31]} 14. Qg4 {[%clk 0:00:49]}  h5 {[%clk 0:02:26]} 15. Qf4 {[%clk 0:00:41]}  Be7 {[%clk 0:02:21]} 16. h4 {[%clk 0:00:37]}  Qd4 {[%clk 0:02:18]} 17. g3 {[%clk 0:00:34]}  Qxf4 {[%clk 0:02:18]} 18. Bxf4 {[%clk 0:00:35]}  Nb4 {[%clk 0:02:10]} 19. Bb1 {[%clk 0:00:34]}  Rc8 {[%clk 0:02:08]} 20. a3 {[%clk 0:00:35]}  Nc6 {[%clk 0:02:08]} 21. Bd3 {[%clk 0:00:35]}  Nd4 {[%clk 0:02:05]} 22. Kg2 {[%clk 0:00:33]}  O-O {[%clk 0:02:03]} 23. Rad1 {[%clk 0:00:34]}  Nb5 {[%clk 0:01:54]} 24. Ne2 {[%clk 0:00:33]}  Na7 {[%clk 0:01:40]} 25. Bd2 {[%clk 0:00:32]}  Bb5 {[%clk 0:01:40]} 26. Bb1 {[%clk 0:00:32]}  Rfd8 {[%clk 0:01:37]} 27. Nd4 {[%clk 0:00:32]}  Ba4 {[%clk 0:01:35]} 28. b3 {[%clk 0:00:32]}  Bd7 {[%clk 0:01:31]} 29. a4 {[%clk 0:00:33]}  Nc6 {[%clk 0:01:30]} 30. Nc2 {[%clk 0:00:23]}  a5 {[%clk 0:01:20]} 31. f4 {[%clk 0:00:23]}  g6 {[%clk 0:01:19]} 32. Be3 {[%clk 0:00:19]}  Nb4 {[%clk 0:01:15]} 33. Re2 {[%clk 0:00:10]}  Nxc2 {[%clk 0:01:12]} 34. Rxc2 {[%clk 0:00:11]}  Rxc2+ {[%clk 0:01:12]} 35. Bxc2 {[%clk 0:00:12]}  Rc8 {[%clk 0:01:08]} 36. Bd3 {[%clk 0:00:04]}  Rc3 {[%clk 0:01:06]} 37. Bb6 {[%clk 0:00:03]}  Bb4 {[%clk 0:01:02]} 38. Bb5 {[%clk 0:00:01]}  Bxb5 {[%clk 0:00:57]} 39. axb5 {[%clk 0:00:02]}  Rxb3 {[%clk 0:00:53]} 40. Bd8 {[%clk 0:00:02]}  a4 {[%clk 0:00:49]} 41. Rc1 {[%clk 0:00:03]}  Bc3 {[%clk 0:00:47]} 42. Rc2 {[%clk 0:00:02]}  a3 {[%clk 0:00:45]} 43. Kh3 {[%clk 0:00:02]}  d4 {[%clk 0:00:45]} 44. Ra2 {[%clk 0:00:02]}  d3 {[%clk 0:00:42]} 45. Be7 {[%clk 0:00:01]}  d2 {[%clk 0:00:41]} 46. Bxa3 {[%clk 0:00:02]}  d1=Q {[%clk 0:00:40]} 47. Be7 {[%clk 0:00:02]}  Qh1+ {[%clk 0:00:39]} 48. Rh2 {[%clk 0:00:02]}  Qf1+ {[%clk 0:00:39]} 49. Rg2 {[%clk 0:00:01]}  Rb2 {[%clk 0:00:39]} 50. Kh2 {[%clk 0:00:01]}  Qxg2# {[%clk 0:00:39]} 0-1


[Site "https://www.chess.com"]

[Event "Titled Tuesday Blitz May 31 Late 2022"]
[White "Sarana, Alexey"]
[Black "Donchenko, Alexander"]
[WhiteFideId "24133795"]
[BlackFideId "24603295"]
[WhiteElo "2666"]
[BlackElo "2572"]
[Result "1-0"]
[Round "09"]
[TimeControl "180+1"]
[Date "2022.05.31"]
[WhiteClock "0:00:48"]
[BlackClock "0:02:00"]

1. d4 {[%clk 0:02:29]}  Nf6 {[%clk 0:02:59]} 2. c4 {[%clk 0:02:28]}  e6 {[%clk 0:03:00]} 3. Nc3 {[%clk 0:02:28]}  Bb4 {[%clk 0:03:00]} 4. e3 {[%clk 0:02:27]}  O-O {[%clk 0:02:59]} 5. Bd3 {[%clk 0:02:28]}  Re8 {[%clk 0:03:00]} 6. a3 {[%clk 0:02:27]}  Bxc3+ {[%clk 0:03:00]} 7. bxc3 {[%clk 0:02:28]}  e5 {[%clk 0:02:59]} 8. Ne2 {[%clk 0:02:26]}  e4 {[%clk 0:02:56]} 9. Bc2 {[%clk 0:02:26]}  d6 {[%clk 0:02:55]} 10. f3 {[%clk 0:02:24]}  Be6 {[%clk 0:02:49]} 11. d5 {[%clk 0:02:14]}  Bf5 {[%clk 0:02:48]} 12. Ng3 {[%clk 0:02:11]}  Bg6 {[%clk 0:02:48]} 13. f4 {[%clk 0:01:55]}  h5 {[%clk 0:02:45]} 14. f5 {[%clk 0:01:54]}  Bh7 {[%clk 0:02:45]} 15. O-O {[%clk 0:01:52]}  h4 {[%clk 0:02:41]} 16. Ne2 {[%clk 0:01:52]}  Re5 {[%clk 0:02:34]} 17. Nd4 {[%clk 0:01:51]}  c5 {[%clk 0:02:33]} 18. dxc6 {[%clk 0:01:51]}  bxc6 {[%clk 0:02:30]} 19. a4 {[%clk 0:01:14]}  a6 {[%clk 0:02:18]} 20. Bd2 {[%clk 0:01:00]}  c5 {[%clk 0:02:16]} 21. Ne2 {[%clk 0:01:00]}  Bxf5 {[%clk 0:02:08]} 22. Be1 {[%clk 0:01:00]}  h3 {[%clk 0:02:07]} 23. Bg3 {[%clk 0:00:57]}  hxg2 {[%clk 0:02:06]} 24. Rf2 {[%clk 0:00:49]}  Ng4 {[%clk 0:02:01]} 25. Bxe5 {[%clk 0:00:49]}  Nxf2 {[%clk 0:02:00]} 26. Kxf2 {[%clk 0:00:49]}  dxe5 {[%clk 0:02:00]} 27. Qxd8+ {[%clk 0:00:48]} 1-0


[Site "https://www.chess.com"]

[Event "Titled Tuesday Blitz May 31 Late 2022"]
[White "Sibilio, Mario"]
[Black "Zakarian, David"]
[WhiteFideId "800422"]
[BlackFideId "13301276"]
[WhiteElo "2296"]
[BlackElo "2451"]
[Result "0-1"]
[Round "09"]
[TimeControl "180+1"]
[Date "2022.06.01"]
[WhiteClock "0:00:01"]
[BlackClock "0:00:06"]

1. Nf3 {[%clk 0:03:00]}  c5 {[%clk 0:02:59]} 2. e4 {[%clk 0:03:00]}  Nc6 {[%clk 0:02:58]} 3. Bb5 {[%clk 0:02:59]}  Qb6 {[%clk 0:02:57]} 4. a4 {[%clk 0:02:55]}  a6 {[%clk 0:02:55]} 5. Bc4 {[%clk 0:02:50]}  e6 {[%clk 0:02:54]} 6. O-O {[%clk 0:02:46]}  d6 {[%clk 0:02:43]} 7. c3 {[%clk 0:02:39]}  Nf6 {[%clk 0:02:41]} 8. Re1 {[%clk 0:02:38]}  Be7 {[%clk 0:02:39]} 9. d4 {[%clk 0:02:37]}  O-O {[%clk 0:02:29]} 10. d5 {[%clk 0:02:27]}  Na5 {[%clk 0:02:29]} 11. Ba2 {[%clk 0:02:26]}  e5 {[%clk 0:02:23]} 12. Nbd2 {[%clk 0:02:21]}  Bg4 {[%clk 0:02:16]} 13. Rb1 {[%clk 0:02:10]}  c4 {[%clk 0:02:00]} 14. Nxc4 {[%clk 0:02:06]}  Nxc4 {[%clk 0:02:01]} 15. Bxc4 {[%clk 0:02:06]}  Rac8 {[%clk 0:01:59]} 16. Bf1 {[%clk 0:02:03]}  h6 {[%clk 0:01:52]} 17. h3 {[%clk 0:01:30]}  Bh5 {[%clk 0:01:49]} 18. Bd2 {[%clk 0:01:26]}  Bg6 {[%clk 0:01:40]} 19. Bd3 {[%clk 0:00:57]}  Nxd5 {[%clk 0:01:36]} 20. Bxh6 {[%clk 0:00:56]}  Nf6 {[%clk 0:01:23]} 21. Bg5 {[%clk 0:00:53]}  Rfe8 {[%clk 0:01:16]} 22. Nd2 {[%clk 0:00:50]}  d5 {[%clk 0:01:09]} 23. Bxf6 {[%clk 0:00:35]}  Bxf6 {[%clk 0:01:01]} 24. Qf3 {[%clk 0:00:33]}  d4 {[%clk 0:00:55]} 25. Nc4 {[%clk 0:00:19]}  Qe6 {[%clk 0:00:46]} 26. cxd4 {[%clk 0:00:18]}  Rxc4 {[%clk 0:00:43]} 27. d5 {[%clk 0:00:16]}  Qc8 {[%clk 0:00:43]} 28. Bxc4 {[%clk 0:00:15]}  Qxc4 {[%clk 0:00:44]} 29. Rbc1 {[%clk 0:00:14]}  Qxa4 {[%clk 0:00:43]} 30. Rc7 {[%clk 0:00:13]}  Qb4 {[%clk 0:00:34]} 31. Rec1 {[%clk 0:00:12]}  Bxe4 {[%clk 0:00:29]} 32. Qg4 {[%clk 0:00:09]}  b5 {[%clk 0:00:12]} 33. Rc8 {[%clk 0:00:08]}  Rxc8 {[%clk 0:00:09]} 34. Rxc8+ {[%clk 0:00:07]}  Qf8 {[%clk 0:00:08]} 35. Rxf8+ {[%clk 0:00:06]}  Kxf8 {[%clk 0:00:09]} 36. Qc8+ {[%clk 0:00:05]}  Ke7 {[%clk 0:00:08]} 37. Qc7+ {[%clk 0:00:05]}  Ke8 {[%clk 0:00:08]} 38. d6 {[%clk 0:00:05]}  Bf5 {[%clk 0:00:08]} 39. g4 {[%clk 0:00:04]}  Be6 {[%clk 0:00:07]} 40. f4 {[%clk 0:00:03]}  exf4 {[%clk 0:00:06]} 41. Qb8+ {[%clk 0:00:01]}  Bd8 {[%clk 0:00:06]} 0-1


[Site "https://www.chess.com"]